[Event "Early-Titled-Tuesday-Blitz-May-14-2024"]
[Site "Chess.com"]
[Date "2024.05.14"]
[Round "7"]
[White "Abund"]
[Black "Dewarfd"]
[Result "1-0"]
[WhiteElo "2784"]
[BlackElo "2086"]
[TimeControl "180+1"]
[EndTime "9:17:22 PDT"]
[Termination "Abund won by resignation"]

1. Nf3 {[%clk 0:03:00.9]} 1... g6 {[%clk 0:02:44.1]} 2. d4 {[%clk 0:02:48.6]}
2... Nf6 {[%clk 0:02:40.4]} 3. b3 {[%clk 0:02:46]} 3... d5 {[%clk 0:02:38.7]} 4.
Bb2 {[%clk 0:02:45.9]} 4... Bg7 {[%clk 0:02:38.2]} 5. e3 {[%clk 0:02:43.1]} 5...
O-O {[%clk 0:02:38.2]} 6. Nbd2 {[%clk 0:02:42.9]} 6... c5 {[%clk 0:02:37.9]} 7.
dxc5 {[%clk 0:02:37]} 7... a5 {[%clk 0:02:35.3]} 8. a3 {[%clk 0:02:31]} 8... Nc6
{[%clk 0:02:34]} 9. Bb5 {[%clk 0:02:24.7]} 9... Bg4 {[%clk 0:02:29.3]} 10. O-O
{[%clk 0:02:21.9]} 10... Nd7 {[%clk 0:02:11]} 11. Bxg7 {[%clk 0:02:18]} 11...
Kxg7 {[%clk 0:02:11.3]} 12. h3 {[%clk 0:02:14.6]} 12... Bxf3 {[%clk 0:02:03.5]}
13. Nxf3 {[%clk 0:02:15.5]} 13... Nxc5 {[%clk 0:02:02.6]} 14. Bxc6 {[%clk
0:02:15.3]} 14... bxc6 {[%clk 0:02:02.6]} 15. Qd4+ {[%clk 0:02:15.4]} 15... Kg8
{[%clk 0:01:58]} 16. Qxc5 {[%clk 0:02:14.9]} 16... Qd6 {[%clk 0:01:58.3]} 17.
Qxd6 {[%clk 0:02:10.8]} 17... exd6 {[%clk 0:01:58.4]} 18. Rfd1 {[%clk
0:02:04.7]} 18... Rfb8 {[%clk 0:01:41.5]} 19. Rab1 {[%clk 0:01:57.2]} 19... f6
{[%clk 0:01:38.5]} 20. c4 {[%clk 0:01:56.2]} 20... dxc4 {[%clk 0:01:37.8]} 21.
bxc4 {[%clk 0:01:57.1]} 21... d5 {[%clk 0:01:31.8]} 22. Rxb8+ {[%clk 0:01:48.1]}
22... Rxb8 {[%clk 0:01:32.7]} 23. cxd5 {[%clk 0:01:48.8]} 23... cxd5 {[%clk
0:01:31.9]} 24. Rxd5 {[%clk 0:01:49.7]} 24... Rb1+ {[%clk 0:01:27]} 25. Kh2
{[%clk 0:01:45.5]} 25... a4 {[%clk 0:01:24.2]} 26. Ra5 {[%clk 0:01:44.6]} 26...
Rb2 {[%clk 0:01:24]} 27. Kg3 {[%clk 0:01:44.5]} 27... h5 {[%clk 0:01:20]} 28. h4
{[%clk 0:01:43.5]} 28... Kg7 {[%clk 0:01:18.5]} 29. Ra7+ {[%clk 0:01:43.2]}
29... Kh6 {[%clk 0:01:18.8]} 30. Rxa4 {[%clk 0:01:43.5]} 30... g5 {[%clk
0:01:18.2]} 31. hxg5+ {[%clk 0:01:43.6]} 31... fxg5 {[%clk 0:01:15.6]} 32. Ra6+
{[%clk 0:01:43.7]} 32... Kg7 {[%clk 0:01:15.3]} 33. Nxg5 {[%clk 0:01:43.7]}
33... Ra2 {[%clk 0:01:15.1]} 34. Ne6+ {[%clk 0:01:37.3]} 34... Kf6 {[%clk
0:01:11.7]} 35. Nf4+ {[%clk 0:01:36.7]} 1-0

[Event "Early-Titled-Tuesday-Blitz-May-14-2024"]
[Site "Chess.com"]
[Date "2024.05.14"]
[Round "7"]
[White "Semetey"]
[Black "MariaFominykh"]
[Result "1-0"]
[WhiteElo "2586"]
[BlackElo "2367"]
[TimeControl "180+1"]
[EndTime "9:17:50 PDT"]
[Termination "Semetey won on time"]

1. Nc3 {[%clk 0:02:50]} 1... Nf6 {[%clk 0:02:59.2]} 2. d4 {[%clk 0:02:45.4]}
2... g6 {[%clk 0:02:57.7]} 3. e4 {[%clk 0:02:44.7]} 3... d6 {[%clk 0:02:58]} 4.
Nf3 {[%clk 0:02:44.5]} 4... Bg7 {[%clk 0:02:57.4]} 5. g3 {[%clk 0:02:44.9]} 5...
O-O {[%clk 0:02:57.3]} 6. Bg2 {[%clk 0:02:45.3]} 6... Nbd7 {[%clk 0:02:56.4]} 7.
O-O {[%clk 0:02:45.4]} 7... e5 {[%clk 0:02:56.5]} 8. h3 {[%clk 0:02:45.5]} 8...
c6 {[%clk 0:02:53.9]} 9. Be3 {[%clk 0:02:45.3]} 9... Re8 {[%clk 0:02:52.7]} 10.
Re1 {[%clk 0:02:42.5]} 10... Qc7 {[%clk 0:02:50.3]} 11. a4 {[%clk 0:02:41.9]}
11... h6 {[%clk 0:02:45.6]} 12. Qd2 {[%clk 0:02:41.4]} 12... Kh7 {[%clk
0:02:44.9]} 13. Rad1 {[%clk 0:02:41.3]} 13... Nf8 {[%clk 0:02:41.8]} 14. dxe5
{[%clk 0:02:37.7]} 14... dxe5 {[%clk 0:02:41.7]} 15. Bc5 {[%clk 0:02:38.3]}
15... N6d7 {[%clk 0:02:32.2]} 16. Bd6 {[%clk 0:02:38.4]} 16... Qb6 {[%clk
0:02:32.3]} 17. b4 {[%clk 0:02:38.4]} 17... a5 {[%clk 0:02:31.2]} 18. b5 {[%clk
0:02:33.2]} 18... Ne6 {[%clk 0:02:22.5]} 19. Rb1 {[%clk 0:02:26.1]} 19... Nd4
{[%clk 0:02:16]} 20. bxc6 {[%clk 0:02:22.6]} 20... Qxc6 {[%clk 0:02:08.7]} 21.
Nb5 {[%clk 0:02:21]} 21... Re6 {[%clk 0:01:10.7]} 22. Nfxd4 {[%clk 0:02:19.6]}
22... exd4 {[%clk 0:00:28.8]} 23. e5 {[%clk 0:02:20.5]} 23... Qc4 {[%clk
0:00:21.5]} 24. Nc7 {[%clk 0:02:15.3]} 24... Ra7 {[%clk 0:00:14]} 25. Bd5 {[%clk
0:02:03.3]} 25... Qxa4 {[%clk 0:00:12.6]} 26. Ra1 {[%clk 0:02:03]} 26... Rxd6
{[%clk 0:00:05.3]} 27. Rxa4 {[%clk 0:01:59.8]} 27... Rb6 {[%clk 0:00:03]} 28.
Rxa5 {[%clk 0:01:56.2]} 28... Rxa5 {[%clk 0:00:00.3]} 29. Qxa5 {[%clk
0:01:57.1]} 1-0

[Event "Early-Titled-Tuesday-Blitz-May-14-2024"]
[Site "Chess.com"]
[Date "2024.05.14"]
[Round "7"]
[White "MatthewG-p4p"]
[Black "MITerryble"]
[Result "1-0"]
[WhiteElo "2846"]
[BlackElo "3029"]
[TimeControl "180+1"]
[EndTime "9:17:52 PDT"]
[Termination "MatthewG-p4p won by resignation"]

1. e4 {[%clk 0:02:55.6]} 1... e6 {[%clk 0:02:57.8]} 2. d4 {[%clk 0:02:56.1]}
2... d5 {[%clk 0:02:55.7]} 3. e5 {[%clk 0:02:56.4]} 3... c5 {[%clk 0:02:55.4]}
4. c3 {[%clk 0:02:57.1]} 4... Qb6 {[%clk 0:02:55.4]} 5. Nf3 {[%clk 0:02:57.5]}
5... Bd7 {[%clk 0:02:55.4]} 6. Be2 {[%clk 0:02:57.5]} 6... cxd4 {[%clk
0:02:55.2]} 7. cxd4 {[%clk 0:02:58.4]} 7... Bb5 {[%clk 0:02:55.4]} 8. Nc3 {[%clk
0:02:59.1]} 8... Bxe2 {[%clk 0:02:55.4]} 9. Nxe2 {[%clk 0:03:00]} 9... Nc6
{[%clk 0:02:52.8]} 10. O-O {[%clk 0:02:57.4]} 10... Nge7 {[%clk 0:02:51]} 11.
Ng3 {[%clk 0:02:42.2]} 11... g6 {[%clk 0:02:50.2]} 12. a3 {[%clk 0:02:40.6]}
12... Bg7 {[%clk 0:02:44.2]} 13. b4 {[%clk 0:02:39.1]} 13... a5 {[%clk
0:02:43.9]} 14. bxa5 {[%clk 0:02:38.7]} 14... Nxa5 {[%clk 0:02:43.3]} 15. Bd2
{[%clk 0:02:37.6]} 15... O-O {[%clk 0:02:39.8]} 16. Bb4 {[%clk 0:02:36.9]} 16...
Rfe8 {[%clk 0:02:38.8]} 17. Bc5 {[%clk 0:02:36.3]} 17... Qa6 {[%clk 0:02:16.9]}
18. h4 {[%clk 0:02:33.2]} 18... h6 {[%clk 0:02:12.6]} 19. h5 {[%clk 0:02:30]}
19... g5 {[%clk 0:02:03.4]} 20. Nh2 {[%clk 0:02:30.4]} 20... Nf5 {[%clk
0:02:02.7]} 21. Qf3 {[%clk 0:01:57.3]} 21... Nh4 {[%clk 0:02:00]} 22. Qg4 {[%clk
0:01:50.1]} 22... Nb3 {[%clk 0:01:41.2]} 23. f4 {[%clk 0:01:38.9]} 23... Nf5
{[%clk 0:01:08.4]} 24. fxg5 {[%clk 0:01:30]} 24... Ne3 {[%clk 0:01:08]} 25. Qf4
{[%clk 0:01:18.5]} 25... Nxf1 {[%clk 0:01:05.4]} 26. Rxf1 {[%clk 0:01:14.5]}
26... Nxc5 {[%clk 0:00:59.3]} 27. gxh6 {[%clk 0:00:48.8]} 1-0

[Event "Early-Titled-Tuesday-Blitz-May-14-2024"]
[Site "Chess.com"]
[Date "2024.05.14"]
[Round "7"]
[White "stamatolog13"]
[Black "Raud100"]
[Result "1-0"]
[WhiteElo "2567"]
[BlackElo "2355"]
[TimeControl "180+1"]
[EndTime "9:17:55 PDT"]
[Termination "stamatolog13 won by resignation"]

1. e4 {[%clk 0:02:59.5]} 1... d6 {[%clk 0:03:00.3]} 2. d4 {[%clk 0:02:59]} 2...
Nf6 {[%clk 0:03:01.2]} 3. Nc3 {[%clk 0:02:59.4]} 3... g6 {[%clk 0:03:01.2]} 4.
f4 {[%clk 0:02:59.4]} 4... Bg7 {[%clk 0:03:01]} 5. Nf3 {[%clk 0:03:00]} 5... c5
{[%clk 0:03:01.6]} 6. dxc5 {[%clk 0:02:59.5]} 6... Qa5 {[%clk 0:03:01.3]} 7. Bd3
{[%clk 0:02:59.9]} 7... Qxc5 {[%clk 0:03:01.8]} 8. Qe2 {[%clk 0:03:00.4]} 8...
O-O {[%clk 0:03:02.3]} 9. Be3 {[%clk 0:03:00.3]} 9... Qa5 {[%clk 0:03:02.9]} 10.
h3 {[%clk 0:03:00]} 10... Nc6 {[%clk 0:03:01.6]} 11. O-O {[%clk 0:02:59.6]}
11... Nd7 {[%clk 0:03:00.9]} 12. a3 {[%clk 0:02:59.8]} 12... Bxc3 {[%clk
0:03:00.1]} 13. bxc3 {[%clk 0:03:00.1]} 13... Qxc3 {[%clk 0:03:01]} 14. Qf2
{[%clk 0:02:54.5]} 14... Nc5 {[%clk 0:02:58.9]} 15. Rad1 {[%clk 0:02:50.6]}
15... f6 {[%clk 0:02:47.5]} 16. Qh4 {[%clk 0:02:35.1]} 16... Qxa3 {[%clk
0:02:39]} 17. Qh6 {[%clk 0:02:28.4]} 17... Be6 {[%clk 0:02:29.9]} 18. f5 {[%clk
0:02:26.3]} 18... Bf7 {[%clk 0:02:19.2]} 19. fxg6 {[%clk 0:02:25.3]} 19... hxg6
{[%clk 0:02:18.4]} 20. Nh4 {[%clk 0:02:24]} 20... Ne5 {[%clk 0:02:17.6]} 21. Bd4
{[%clk 0:02:19.2]} 21... Ncd7 {[%clk 0:02:16.9]} 22. Rf5 {[%clk 0:01:51.5]}
22... e6 {[%clk 0:01:48.6]} 23. Bxe5 {[%clk 0:01:44.1]} 23... Nxe5 {[%clk
0:01:31.3]} 24. Rxe5 {[%clk 0:01:42.7]} 24... fxe5 {[%clk 0:01:11.6]} 25. Nxg6
{[%clk 0:01:42.1]} 25... Qc5+ {[%clk 0:01:08.8]} 26. Kh1 {[%clk 0:01:38.2]}
26... Bxg6 {[%clk 0:01:07.5]} 27. Qxg6+ {[%clk 0:01:38.3]} 27... Kh8 {[%clk
0:01:08.1]} 28. Qh6+ {[%clk 0:01:33]} 28... Kg8 {[%clk 0:01:08.4]} 29. Qxe6+
{[%clk 0:01:33.5]} 29... Kg7 {[%clk 0:01:08.1]} 30. Qg4+ {[%clk 0:01:27.8]}
30... Kh7 {[%clk 0:01:03.2]} 31. Qh5+ {[%clk 0:01:18.2]} 31... Kg7 {[%clk
0:01:02.8]} 32. Qg5+ {[%clk 0:01:18.8]} 32... Kh7 {[%clk 0:01:02.8]} 33. Be2
{[%clk 0:01:15.8]} 33... Rf6 {[%clk 0:00:58.8]} 34. Qxf6 {[%clk 0:01:14.9]} 1-0

[Event "Early-Titled-Tuesday-Blitz-May-14-2024"]
[Site "Chess.com"]
[Date "2024.05.14"]
[Round "7"]
[White "Chernov_Mikhail"]
[Black "ClauAmura"]
[Result "0-1"]
[WhiteElo "2359"]
[BlackElo "2340"]
[TimeControl "180+1"]
[EndTime "9:17:59 PDT"]
[Termination "ClauAmura won by resignation"]

1. e4 {[%clk 0:03:00.9]} 1... c5 {[%clk 0:02:59.4]} 2. Nf3 {[%clk 0:02:48.2]}
2... Nc6 {[%clk 0:02:59.7]} 3. Bb5 {[%clk 0:02:47.5]} 3... Nf6 {[%clk
0:02:56.6]} 4. d3 {[%clk 0:02:35]} 4... g6 {[%clk 0:02:48.4]} 5. O-O {[%clk
0:02:33.2]} 5... Bg7 {[%clk 0:02:48.9]} 6. h3 {[%clk 0:02:24.4]} 6... O-O {[%clk
0:02:49.2]} 7. c4 {[%clk 0:02:23.8]} 7... Ne8 {[%clk 0:02:33.6]} 8. Bxc6 {[%clk
0:02:22.3]} 8... dxc6 {[%clk 0:02:32.4]} 9. Nc3 {[%clk 0:02:20.7]} 9... Nc7
{[%clk 0:02:32.4]} 10. Be3 {[%clk 0:02:17.9]} 10... Ne6 {[%clk 0:02:31.7]} 11.
e5 {[%clk 0:02:00.4]} 11... b6 {[%clk 0:02:26]} 12. Qe2 {[%clk 0:01:58]} 12...
Qc7 {[%clk 0:02:25.8]} 13. d4 {[%clk 0:01:40]} 13... cxd4 {[%clk 0:02:24.8]} 14.
Bxd4 {[%clk 0:01:35.6]} 14... Nxd4 {[%clk 0:02:12.8]} 15. Nxd4 {[%clk 0:01:33]}
15... Bxe5 {[%clk 0:02:09.7]} 16. Nxc6 {[%clk 0:01:29.6]} 16... Bh2+ {[%clk
0:02:09.5]} 17. Kh1 {[%clk 0:01:27.2]} 17... Bd6 {[%clk 0:01:56]} 18. Nd4 {[%clk
0:01:10.6]} 18... a6 {[%clk 0:01:52.4]} 19. b3 {[%clk 0:01:10.5]} 19... Bb7
{[%clk 0:01:52.3]} 20. Rad1 {[%clk 0:01:10.8]} 20... b5 {[%clk 0:01:46.2]} 21.
Rc1 {[%clk 0:00:24.3]} 21... bxc4 {[%clk 0:01:45.8]} 22. Ne4 {[%clk 0:00:24.2]}
22... Qd7 {[%clk 0:01:39.1]} 23. Rxc4 {[%clk 0:00:20.5]} 23... Bf4 {[%clk
0:01:30.4]} 24. Nc5 {[%clk 0:00:15.9]} 24... Qxh3+ {[%clk 0:01:29.6]} 0-1

[Event "Early-Titled-Tuesday-Blitz-May-14-2024"]
[Site "Chess.com"]
[Date "2024.05.14"]
[Round "7"]
[White "KnightDuta"]
[Black "1stSecond"]
[Result "0-1"]
[WhiteElo "2736"]
[BlackElo "2899"]
[TimeControl "180+1"]
[EndTime "9:18:00 PDT"]
[Termination "1stSecond won by checkmate"]

1. e4 {[%clk 0:03:00.9]} 1... c6 {[%clk 0:03:00]} 2. d4 {[%clk 0:03:00.8]} 2...
d5 {[%clk 0:03:00.5]} 3. Nc3 {[%clk 0:03:01.5]} 3... dxe4 {[%clk 0:03:00.7]} 4.
Nxe4 {[%clk 0:03:02.4]} 4... Nf6 {[%clk 0:03:01.4]} 5. Nxf6+ {[%clk 0:03:02.9]}
5... exf6 {[%clk 0:03:02]} 6. c3 {[%clk 0:03:03.8]} 6... Bd6 {[%clk 0:03:02.2]}
7. Bd3 {[%clk 0:03:04.7]} 7... O-O {[%clk 0:03:02.9]} 8. Qc2 {[%clk 0:03:05.6]}
8... Re8+ {[%clk 0:03:03.2]} 9. Ne2 {[%clk 0:03:06.2]} 9... h5 {[%clk
0:03:03.9]} 10. O-O {[%clk 0:03:06.8]} 10... h4 {[%clk 0:03:04.3]} 11. Be3
{[%clk 0:03:04.2]} 11... Nd7 {[%clk 0:03:04.7]} 12. Rfe1 {[%clk 0:02:54.2]}
12... h3 {[%clk 0:03:04.7]} 13. Bf4 {[%clk 0:02:48.2]} 13... Nf8 {[%clk
0:03:02.9]} 14. Bxd6 {[%clk 0:02:47.3]} 14... Qxd6 {[%clk 0:03:03.8]} 15. Ng3
{[%clk 0:02:37.5]} 15... Bd7 {[%clk 0:02:53.6]} 16. Ne4 {[%clk 0:02:31.9]} 16...
Qd5 {[%clk 0:02:50.5]} 17. b3 {[%clk 0:01:57.8]} 17... b5 {[%clk 0:02:36.9]} 18.
f3 {[%clk 0:01:53.4]} 18... Rad8 {[%clk 0:02:25.9]} 19. Nc5 {[%clk 0:01:36.3]}
19... hxg2 {[%clk 0:02:16.3]} 20. Qxg2 {[%clk 0:01:37.2]} 20... Bc8 {[%clk
0:02:14.7]} 21. Kf2 {[%clk 0:01:30.2]} 21... b4 {[%clk 0:01:59.7]} 22. Bc4
{[%clk 0:01:16.5]} 22... Qd6 {[%clk 0:01:59.6]} 23. Rg1 {[%clk 0:01:04.2]} 23...
g6 {[%clk 0:01:54.3]} 24. Ne4 {[%clk 0:01:03.2]} 24... Qf4 {[%clk 0:01:53.3]}
25. Qg3 {[%clk 0:01:03.3]} 25... Rxe4 {[%clk 0:01:53.3]} 26. Qxf4 {[%clk
0:00:34.2]} 26... Rxf4 {[%clk 0:01:54.2]} 27. cxb4 {[%clk 0:00:33.7]} 27...
Rfxd4 {[%clk 0:01:52.6]} 28. Rae1 {[%clk 0:00:34.3]} 28... Be6 {[%clk
0:01:50.7]} 29. Bxe6 {[%clk 0:00:32]} 29... Nxe6 {[%clk 0:01:51.6]} 30. Rc1
{[%clk 0:00:32.4]} 30... Rd2+ {[%clk 0:01:51.1]} 31. Kg3 {[%clk 0:00:32.4]}
31... Nd4 {[%clk 0:01:51.4]} 32. Rc4 {[%clk 0:00:30.2]} 32... Ne2+ {[%clk
0:01:51.3]} 33. Kf2 {[%clk 0:00:29.5]} 33... Nxg1+ {[%clk 0:01:52.2]} 34. Kxg1
{[%clk 0:00:30.4]} 34... Rxa2 {[%clk 0:01:51.8]} 35. Rc1 {[%clk 0:00:31]} 35...
Rdd2 {[%clk 0:01:52]} 36. b5 {[%clk 0:00:31.5]} 36... cxb5 {[%clk 0:01:51.9]}
37. b4 {[%clk 0:00:31.4]} 37... Rg2+ {[%clk 0:01:52.2]} 38. Kh1 {[%clk 0:00:32]}
38... Rxh2+ {[%clk 0:01:52.2]} 39. Kg1 {[%clk 0:00:32.9]} 39... Rag2+ {[%clk
0:01:52.6]} 40. Kf1 {[%clk 0:00:33]} 40... Rh1+ {[%clk 0:01:53.5]} 41. Kxg2
{[%clk 0:00:33.9]} 41... Rxc1 {[%clk 0:01:54.4]} 42. f4 {[%clk 0:00:34.7]} 42...
Rc4 {[%clk 0:01:55.3]} 43. f5 {[%clk 0:00:35.6]} 43... Rxb4 {[%clk 0:01:56.2]}
44. fxg6 {[%clk 0:00:36.5]} 44... fxg6 {[%clk 0:01:57]} 45. Kf3 {[%clk
0:00:37.4]} 45... f5 {[%clk 0:01:57.9]} 46. Ke3 {[%clk 0:00:38.3]} 46... Rc4
{[%clk 0:01:58.8]} 47. Kd3 {[%clk 0:00:39.2]} 47... a5 {[%clk 0:01:59.7]} 48.
Ke3 {[%clk 0:00:40]} 48... a4 {[%clk 0:02:00.6]} 49. Kd3 {[%clk 0:00:40.9]}
49... a3 {[%clk 0:02:01.5]} 50. Kd2 {[%clk 0:00:41.8]} 50... a2 {[%clk
0:02:02.4]} 51. Ke2 {[%clk 0:00:42.7]} 51... a1=Q {[%clk 0:02:03.3]} 52. Ke3
{[%clk 0:00:43.6]} 52... Qa3+ {[%clk 0:02:04.2]} 53. Kd2 {[%clk 0:00:43.9]}
53... Qb3 {[%clk 0:02:04.7]} 54. Ke1 {[%clk 0:00:43.5]} 54... Rc2 {[%clk
0:02:04.9]} 55. Kd1 {[%clk 0:00:44.4]} 55... Qb1# {[%clk 0:02:05.7]} 0-1

[Event "Early-Titled-Tuesday-Blitz-May-14-2024"]
[Site "Chess.com"]
[Date "2024.05.14"]
[Round "7"]
[White "Sanyura"]
[Black "motivated_bishop"]
[Result "1-0"]
[WhiteElo "2642"]
[BlackElo "2493"]
[TimeControl "180+1"]
[EndTime "9:18:00 PDT"]
[Termination "Sanyura won by resignation"]

1. e4 {[%clk 0:02:48.1]} 1... e5 {[%clk 0:03:00.1]} 2. Nf3 {[%clk 0:02:47.4]}
2... Nc6 {[%clk 0:03:00.7]} 3. Bb5 {[%clk 0:02:48.1]} 3... a6 {[%clk 0:03:01.2]}
4. Ba4 {[%clk 0:02:48.4]} 4... Nf6 {[%clk 0:03:01.5]} 5. O-O {[%clk 0:02:48.9]}
5... Be7 {[%clk 0:03:02]} 6. Re1 {[%clk 0:02:47.6]} 6... b5 {[%clk 0:03:02.3]}
7. Bb3 {[%clk 0:02:47.3]} 7... d6 {[%clk 0:03:03.2]} 8. c3 {[%clk 0:02:45.7]}
8... O-O {[%clk 0:03:03.4]} 9. h3 {[%clk 0:02:46.3]} 9... Nb8 {[%clk 0:03:03.3]}
10. d4 {[%clk 0:02:46.5]} 10... Nbd7 {[%clk 0:03:03.9]} 11. a3 {[%clk 0:02:47]}
11... Bb7 {[%clk 0:03:03]} 12. Nbd2 {[%clk 0:02:47.1]} 12... c5 {[%clk
0:03:03.1]} 13. Bc2 {[%clk 0:02:46.8]} 13... Re8 {[%clk 0:03:00.4]} 14. b4
{[%clk 0:02:47.3]} 14... Bf8 {[%clk 0:02:59.6]} 15. Bb2 {[%clk 0:02:46.4]} 15...
g6 {[%clk 0:02:58.7]} 16. dxe5 {[%clk 0:02:45.5]} 16... dxe5 {[%clk 0:02:57.8]}
17. Nb3 {[%clk 0:02:45.9]} 17... Rc8 {[%clk 0:02:53.8]} 18. Na5 {[%clk
0:02:44.4]} 18... Ba8 {[%clk 0:02:53.1]} 19. Qe2 {[%clk 0:02:41.3]} 19... Qc7
{[%clk 0:02:52.3]} 20. Red1 {[%clk 0:02:36.1]} 20... cxb4 {[%clk 0:02:47.7]} 21.
axb4 {[%clk 0:02:32]} 21... Bxb4 {[%clk 0:02:47.8]} 22. Bb3 {[%clk 0:01:58.9]}
22... Bxa5 {[%clk 0:02:46.4]} 23. Ng5 {[%clk 0:01:56.5]} 23... Rf8 {[%clk
0:02:27.9]} 24. Ba3 {[%clk 0:01:50.5]} 24... Nc5 {[%clk 0:02:27]} 25. Bxc5
{[%clk 0:01:49.7]} 25... Qxc5 {[%clk 0:02:21.5]} 26. Rxa5 {[%clk 0:01:49.7]}
26... Qxc3 {[%clk 0:02:21.7]} 27. Rxa6 {[%clk 0:01:43.2]} 27... Qxb3 {[%clk
0:02:07.5]} 28. Rxf6 {[%clk 0:01:42.8]} 28... Rc2 {[%clk 0:01:52.2]} 29. Qg4
{[%clk 0:01:37.5]} 29... h5 {[%clk 0:01:49.4]} 30. Qd7 {[%clk 0:01:36.8]} 30...
Bc6 {[%clk 0:01:36.7]} 31. Rxg6+ {[%clk 0:01:35.6]} 31... Kh8 {[%clk 0:01:32]}
32. Rh6+ {[%clk 0:01:35.6]} 32... Kg7 {[%clk 0:01:29]} 33. Rh7+ {[%clk
0:01:31.1]} 33... Kg8 {[%clk 0:01:22.1]} 34. Qf5 {[%clk 0:01:30.4]} 34... Rxf2
{[%clk 0:01:11.9]} 35. Rh8+ {[%clk 0:00:56.9]} 35... Kg7 {[%clk 0:01:08]} 36.
Qh7+ {[%clk 0:00:57.5]} 36... Kf6 {[%clk 0:01:07.9]} 37. Qh6+ {[%clk 0:00:58]}
1-0

[Event "Early-Titled-Tuesday-Blitz-May-14-2024"]
[Site "Chess.com"]
[Date "2024.05.14"]
[Round "7"]
[White "RandomNoob04"]
[Black "SoCalJuniorChess"]
[Result "1-0"]
[WhiteElo "2723"]
[BlackElo "2231"]
[TimeControl "180+1"]
[EndTime "9:18:03 PDT"]
[Termination "RandomNoob04 won on time"]

1. e4 {[%clk 0:03:00.9]} 1... d5 {[%clk 0:02:59.6]} 2. exd5 {[%clk 0:03:00.8]}
2... Qxd5 {[%clk 0:03:00.5]} 3. Nc3 {[%clk 0:03:01.1]} 3... Qd8 {[%clk
0:02:59.4]} 4. d4 {[%clk 0:03:02]} 4... Nf6 {[%clk 0:02:59.2]} 5. Nf3 {[%clk
0:03:02.9]} 5... Bg4 {[%clk 0:02:59.5]} 6. h3 {[%clk 0:03:03.4]} 6... Bxf3
{[%clk 0:02:58.8]} 7. Qxf3 {[%clk 0:03:04.3]} 7... c6 {[%clk 0:02:58.7]} 8. Be3
{[%clk 0:03:03.9]} 8... e6 {[%clk 0:02:58.8]} 9. O-O-O {[%clk 0:03:04.4]} 9...
Bb4 {[%clk 0:02:59.3]} 10. Ne4 {[%clk 0:03:00]} 10... Nbd7 {[%clk 0:02:57.3]}
11. Bd3 {[%clk 0:02:57]} 11... Nxe4 {[%clk 0:02:55.7]} 12. Qxe4 {[%clk
0:02:57.6]} 12... Nf6 {[%clk 0:02:56]} 13. Qh4 {[%clk 0:02:57.1]} 13... Nd5
{[%clk 0:02:48]} 14. Qg3 {[%clk 0:02:56.3]} 14... g6 {[%clk 0:02:22.5]} 15. Bh6
{[%clk 0:02:50.1]} 15... Bf8 {[%clk 0:02:20.4]} 16. Bxf8 {[%clk 0:02:50]} 16...
Rxf8 {[%clk 0:02:18.1]} 17. Kb1 {[%clk 0:02:50.2]} 17... Qc7 {[%clk 0:02:16.5]}
18. Qf3 {[%clk 0:02:49.9]} 18... Qb6 {[%clk 0:02:13.2]} 19. Bc4 {[%clk
0:02:46.2]} 19... O-O-O {[%clk 0:02:10.3]} 20. c3 {[%clk 0:02:40.7]} 20... Kb8
{[%clk 0:01:56.7]} 21. h4 {[%clk 0:02:40.3]} 21... h5 {[%clk 0:01:56]} 22. Ka1
{[%clk 0:02:40]} 22... Qc7 {[%clk 0:01:56.1]} 23. g4 {[%clk 0:02:37.1]} 23...
hxg4 {[%clk 0:01:49]} 24. Qxg4 {[%clk 0:02:38]} 24... Qf4 {[%clk 0:01:47.2]} 25.
Qe2 {[%clk 0:02:37.5]} 25... Rh8 {[%clk 0:01:45.5]} 26. h5 {[%clk 0:02:27.3]}
26... Rxh5 {[%clk 0:01:40.1]} 27. Rxh5 {[%clk 0:02:28.2]} 27... gxh5 {[%clk
0:01:39.1]} 28. Qxh5 {[%clk 0:02:29.1]} 28... Qxf2 {[%clk 0:01:35.8]} 29. Rf1
{[%clk 0:02:29.7]} 29... Qg3 {[%clk 0:01:17.8]} 30. Bxd5 {[%clk 0:02:11.6]}
30... exd5 {[%clk 0:01:03]} 31. Qxf7 {[%clk 0:02:12.3]} 31... Rc8 {[%clk
0:00:45.2]} 32. a3 {[%clk 0:02:12.3]} 32... b6 {[%clk 0:00:36.7]} 33. Qd7 {[%clk
0:02:12.6]} 33... Rc7 {[%clk 0:00:34.1]} 34. Qe8+ {[%clk 0:02:07.6]} 34... Rc8
{[%clk 0:00:30.4]} 35. Qd7 {[%clk 0:02:04.5]} 35... Qc7 {[%clk 0:00:28.9]} 36.
Qe6 {[%clk 0:02:03.1]} 36... Qh2 {[%clk 0:00:07.1]} 37. Rf7 {[%clk 0:02:00.6]}
37... Qg1+ {[%clk 0:00:04.1]} 38. Ka2 {[%clk 0:02:00.3]} 1-0

[Event "Early-Titled-Tuesday-Blitz-May-14-2024"]
[Site "Chess.com"]
[Date "2024.05.14"]
[Round "7"]
[White "Cheer_Down"]
[Black "MatyChess1"]
[Result "1-0"]
[WhiteElo "2464"]
[BlackElo "2628"]
[TimeControl "180+1"]
[EndTime "9:18:11 PDT"]
[Termination "Cheer_Down won by resignation"]

1. e4 {[%clk 0:03:00.9]} 1... c6 {[%clk 0:03:00]} 2. d4 {[%clk 0:02:59.9]} 2...
d5 {[%clk 0:03:00.9]} 3. e5 {[%clk 0:02:59.8]} 3... Bf5 {[%clk 0:03:00.9]} 4. h4
{[%clk 0:02:58.9]} 4... h5 {[%clk 0:03:00.5]} 5. Bd3 {[%clk 0:02:57.1]} 5...
Bxd3 {[%clk 0:03:01.2]} 6. Qxd3 {[%clk 0:02:57.6]} 6... e6 {[%clk 0:03:02.1]} 7.
Bg5 {[%clk 0:02:54.7]} 7... Qb6 {[%clk 0:02:56.2]} 8. Nd2 {[%clk 0:02:52.3]}
8... Ne7 {[%clk 0:02:52.9]} 9. c4 {[%clk 0:02:50.9]} 9... Nf5 {[%clk 0:02:53.5]}
10. Ne2 {[%clk 0:02:41.3]} 10... Bb4 {[%clk 0:02:44.9]} 11. O-O {[%clk
0:02:38.1]} 11... Bxd2 {[%clk 0:02:42.1]} 12. Bxd2 {[%clk 0:02:33.4]} 12... Nxh4
{[%clk 0:02:38.5]} 13. Ng3 {[%clk 0:02:16.4]} 13... Ng6 {[%clk 0:02:30.5]} 14.
f4 {[%clk 0:02:12]} 14... h4 {[%clk 0:02:27.6]} 15. Ne2 {[%clk 0:02:07]} 15...
h3 {[%clk 0:02:27.1]} 16. gxh3 {[%clk 0:01:59.2]} 16... dxc4 {[%clk 0:02:27]}
17. Qg3 {[%clk 0:01:51.3]} 17... Qxb2 {[%clk 0:02:20.9]} 18. Rad1 {[%clk
0:01:48.9]} 18... Qc2 {[%clk 0:02:08.5]} 19. f5 {[%clk 0:01:35.1]} 19... Ne7
{[%clk 0:01:54.8]} 20. fxe6 {[%clk 0:01:26.2]} 20... fxe6 {[%clk 0:01:54.3]} 21.
Nf4 {[%clk 0:01:24.7]} 21... Qf5 {[%clk 0:01:37.2]} 22. Bb4 {[%clk 0:01:18.8]}
22... c5 {[%clk 0:01:19.3]} 23. Bxc5 {[%clk 0:01:00.4]} 23... Nbc6 {[%clk
0:01:19.2]} 24. d5 {[%clk 0:00:54.5]} 24... Qxe5 {[%clk 0:01:05.1]} 25. Rfe1
{[%clk 0:00:50.1]} 25... Qf5 {[%clk 0:01:02.4]} 26. Nxe6 {[%clk 0:00:43.6]}
26... Qxh3 {[%clk 0:00:54.5]} 27. Qxh3 {[%clk 0:00:41.7]} 27... Rxh3 {[%clk
0:00:53.6]} 28. dxc6 {[%clk 0:00:41.2]} 1-0